{"text_format":"1","workbook":"xlsx","n_sheets":2,"sheets":["PLANILLA DE CORRESPONDENCIA","LISTA"],"not_rendered":{"charts":0,"images":1,"macros":1,"external_links":0,"defined_names":0,"comments":1,"pivot_tables":0},"unopened":[],"bounds":{"document_bytes":16777216,"sheet_cells":100000,"rows_first":2000,"rows_last":500,"rows_between":2000,"halvings":0,"cell_chars":16384,"cell_head_chars":4096},"cells_cut":0,"cells_raw":0,"read":"whole","date_system":"1900"}

{"sheet":"PLANILLA DE CORRESPONDENCIA","index":0,"n_rows":21,"n_cols":22,"rows_kept":21,"cut":false,"hidden":false,"merged":[[4,16,4,21],[4,0,4,15],[0,20,0,21],[1,20,1,21],[2,20,2,21],[0,2,0,19],[1,2,2,19],[0,0,2,1]]}
[null,null,"INSTITUTO DEPARTAMENTAL DE RECREACION Y DEPORTE DE SANTANDER ",null,null,null,null,null,null,null,null,null,null,null,null,null,null,null,null,null,"VERSION: 01"]
[null,null,"PLANILLA  REGISTRO DIGITAL DE CORRESPONDENCIA Y VENTANILLA UNICA",null,null,null,null,null,null,null,null,null,null,null,null,null,null,null,null,null,"CODIGO: FOGD14"]
[null,null,null,null,null,null,null,null,null,null,null,null,null,null,null,null,null,null,null,null,"Pagina 1 de 1"]
[]
["REGISTRO",null,null,null,null,null,null,null,null,null,null,null,null,null,null,null,"RESPUESTA"]
["No.","Dependencia Responsable","Origen","Radicado","Correo Electrónico Recibido","Documentos Adjuntos","Fecha Correo/Radicado","Folios","Nombre Persona o Entidad","Datos de Contacto\n(Direccion, Celular, Correo)","Clase de Documento","Asunto","Fecha de Entrega   /Envio","Fecha maxima de Respuesta","ESTADO O ALERTA","RTA?","Radicado","Tipo de Documento","Folios","Fecha","Nombre Persona o Entidad","Asunto del Documento"]
[1,null,null,null,null,null,null,null,null,null,null,null,null,{"$f":"IF(K7=\"Peticiones\",WORKDAY(G7,15),IF(K7=\"Quejas\",WORKDAY.INTL(G7,5),IF(K7=\"Reclamos\",WORKDAY(G7,5),IF(K7=\"Sugerencia y comentario\",WORKDAY(G7,15),IF(K7=\"Agradecimiento o felicitación\",\"NA\",IF(K7=\"Queja Anónima\",WORKDAY(G7,8),IF(K7=\"Peticionario\",WORKDAY(G7,15),IF(K7=\"Solicitud de copias\",WORKDAY(G7,5)))))))))","v":false},{"$f":"_xlfn.DAYS(N7,TODAY())","v":-44629},{"$f":"\"R-\"&D7","v":"R-"}]
[2,null,null,null,null,null,null,null,null,null,null,null,null,{"$f":"IF(K8=\"Peticiones\",WORKDAY(G8,15),IF(K8=\"Quejas\",WORKDAY.INTL(G8,5),IF(K8=\"Reclamos\",WORKDAY(G8,5),IF(K8=\"Sugerencia y comentario\",WORKDAY(G8,15),IF(K8=\"Agradecimiento o felicitación\",\"NA\",IF(K8=\"Queja Anónima\",WORKDAY(G8,8),IF(K8=\"Peticionario\",WORKDAY(G8,15),IF(K8=\"Solicitud de copias\",WORKDAY(G8,5)))))))))","v":false},{"$f":"_xlfn.DAYS(N8,TODAY())","v":-44629},{"$f":"\"R-\"&D8","v":"R-"}]
[3,null,null,null,null,null,null,null,null,null,null,null,null,false,-44629,"R-"]
[4,null,null,null,null,null,null,null,null,null,null,null,null,false,-44629,"R-"]
[5,null,null,null,null,null,null,null,null,null,null,null,null,false,-44629,"R-"]
[6,null,null,null,null,null,null,null,null,null,null,null,null,false,-44629,"R-"]
[7,null,null,null,null,null,null,null,null,null,null,null,null,false,-44629,"R-"]
[8,null,null,null,null,null,null,null,null,null,null,null,null,false,-44629,"R-"]
[9,null,null,null,null,null,null,null,null,null,null,null,null,false,-44629,"R-"]
[10,null,null,null,null,null,null,null,null,null,null,null,null,false,-44629,"R-"]
[11,null,null,null,null,null,null,null,null,null,null,null,null,false,-44629,"R-"]
[12,null,null,null,null,null,null,null,null,null,null,null,null,false,-44629,"R-"]
[13,null,null,null,null,null,null,null,null,null,null,null,null,false,-44629,"R-"]
[14,null,null,null,null,null,null,null,null,null,null,null,null,false,-44629,"R-"]
[15,null,null,null,null,null,null,null,null,null,null,null,null,false,-44629,"R-"]

{"sheet":"LISTA","index":1,"n_rows":17,"n_cols":6,"rows_kept":17,"cut":false,"hidden":false,"merged":[]}
[]
[]
["Dependencias",null,"Clase de documento","tiempos"]
[null,null,null,null,null,{"$f":"+TODAY()","v":"2022-03-09"}]
["Dirección",null,"Peticiones","15 días"]
["Jurídica",null,"Quejas","5 dias habiles"]
["Talento Humano",null,"Reclamos","5 dias habiles"]
["Administrativa y Financiera",null,"Sugerencia y comentario","15 días"]
["Tesoreria",null,"Agradecimiento o felicitación","na"]
["Contabilidad",null,"Queja Anónima","8 días "]
["Presupuesto",null,"Peticionario","15 días"]
["Almacen",null,"Solicitud de copias","5 dias habiles"]
["Deporte Asociado"]
["Deporte Social Comunitario"]
["Deporte Estudiantil"]
["Alto Rendimiento"]
["Control Interno"]